bitfinex/quotes_ETHUSD_20250720
["timestamp","ask_amount","ask_price","bid_price","bid_amount"]
[1753040501458,3.97273912,3767.7,3767.6,1e-08]
[1753040501687,8.07273912,3767.7,3767.6,1e-08]
[1753040501895,9.67908009,3767.7,3767.6,1e-08]
[1753040502364,5.57908009,3767.7,3767.6,1e-08]
[1753040502559,9.67908009,3767.7,3767.6,1e-08]
[1753040502795,5.57908009,3767.7,3767.6,1e-08]
[1753040502959,9.67908009,3767.7,3767.6,1e-08]
[1753040504520,12.67908009,3767.7,3767.6,1e-08]
[1753040505175,2.65463233,3767.0,3766.9,0.001]
[1753040505400,8.2931427,3767.0,3766.9,0.001]
[1753040505725,9.5611427,3767.0,3766.9,0.001]
[1753040507175,8.2921427,3767.0,3766.9,0.001]
[1753040507905,8.7386427,3767.0,3766.9,0.001]
[1753040508293,4.1931427,3767.0,3766.9,0.001]
[1753040508506,8.7396427,3767.0,3766.9,0.001]
[1753040509520,8.2931427,3767.0,3766.9,0.001]
[1753040509912,8.7396427,3767.0,3766.9,0.001]
[1753040510396,8.7386427,3767.0,3766.9,0.001]
[1753040510799,4.1931427,3767.0,3766.9,0.001]
[1753040511024,4.1,3767.0,3766.9,1.2882]
[1753040511199,6.75463233,3767.0,3766.9,1.2882]
[1753040512132,6.75463233,3767.0,3766.9,0.001]
[1753040512133,7.30463233,3767.0,3766.9,0.001]
[1753040512535,7.75113233,3767.0,3766.9,0.001]
[1753040512822,9.65963515,3767.0,3766.9,0.001]
[1753040513616,10.45463515,3767.0,3766.9,1e-08]
[1753040516507,6.35463515,3767.0,3766.9,1e-08]
[1753040516719,10.45363515,3767.0,3766.9,1e-08]
[1753040525741,0.132,3767.1,3766.9,1e-08]
[1753040525982,0.132,3767.1,3767.0,0.7648]
[1753040526132,4.23,3767.1,3767.0,0.7648]
[1753040526332,6.88456186,3767.1,3767.0,1.2165]
[1753040526633,4.23,3767.1,3767.0,1.2165]
[1753040526963,7.43456186,3767.1,3767.0,1.2165]
[1753040527167,0.132,3767.1,3767.0,1.2165]
[1753040527342,2.65407428,3767.8,3767.1,2.65450265]
[1753040527545,4.23,3767.7,3767.2,1.2075]
[1753040527859,0.55,3767.6,3767.3,0.4517]
[1753040528061,4.098,3767.5,3767.3,0.4517]
[1753040528646,2.65462671,3767.1,3766.9,1e-08]
[1753040528984,7.30263233,3767.0,3766.9,1e-08]
[1753040529367,4.648,3767.0,3766.9,1e-08]
[1753040529814,4.648,3767.0,3766.9,0.45170001]
[1753040529981,7.30263233,3767.0,3766.9,0.45170001]
[1753040535876,4.648,3767.0,3766.9,0.45170001]
[1753040536077,7.30263233,3767.0,3766.9,0.45170001]
[1753040536605,7.30063233,3767.0,3766.9,0.45170001]
[1753040536821,4.646,3767.0,3766.9,0.45170001]
[1753040537128,7.30063233,3767.0,3766.9,0.45170001]
[1753040538115,4.646,3767.0,3766.9,0.45170001]
[1753040538629,7.30063233,3767.0,3766.9,0.45170001]
[1753040538919,3.20463233,3767.0,3766.9,0.45170001]
[1753040539072,4.646,3767.0,3766.9,0.45170001]
[1753040539573,7.30063233,3767.0,3766.9,0.45170001]
[1753040540631,4.646,3767.0,3766.9,0.45170001]
[1753040540929,7.30063233,3767.0,3766.9,0.45170001]
[1753040542444,0.132,3767.1,3766.9,0.45170001]
[1753040542640,0.002,3767.8,3766.9,0.45170001]
[1753040542641,4.096,3767.0,3766.9,0.45170001]
[1753040542846,4.095,3767.0,3766.9,0.45170001]
[1753040543007,6.74963233,3767.0,3766.9,0.45170001]
[1753040543526,7.29963233,3767.0,3766.9,0.45170001]
[1753040543731,7.29963233,3767.0,3766.9,1e-08]
[1753040547737,12.69777005,3767.0,3766.9,1e-08]
[1753040547898,3.2047028,3766.9,3766.8,1e-08]
[1753040548104,3.6426028,3766.9,3766.8,1e-08]
[1753040551735,3.98658473,3766.5,3766.4,0.001]
[1753040551919,9.02341074,3766.5,3766.4,0.001]
[1753040552333,9.46131074,3766.5,3766.4,0.001]
[1753040552730,8.24181074,3766.5,3766.4,0.001]
[1753040554917,7.29898473,3766.5,3766.4,0.001]
[1753040555155,4.644,3766.5,3766.4,0.4668]
[1753040555448,0.002,3767.0,3766.4,0.4668]
[1753040555449,2.65667447,3767.0,3766.5,0.7655]
[1753040555625,6.74870397,3766.9,3766.6,0.4658]
[1753040555812,6.74870397,3766.9,3766.5,0.7655]
[1753040555813,2.65484376,3766.7,3766.5,0.7655]
[1753040556012,4.094,3766.6,3766.5,0.7655]
[1753040556250,7.29891424,3766.6,3766.5,0.7655]
[1753040556452,2.65498473,3766.5,3766.4,0.001]
[1753040556818,3.20498473,3766.5,3766.4,0.001]
[1753040557057,3.64288473,3766.5,3766.4,0.001]
[1753040558614,3.20498473,3766.5,3766.4,0.001]
[1753040559046,3.64288473,3766.5,3766.4,0.001]
[1753040559270,4.75765463,3766.5,3766.4,0.001]
[1753040560846,4.31975463,3766.5,3766.4,0.001]
[1753040562261,4.75765463,3766.5,3766.4,0.001]
[1753040563356,4.01576672,3766.1,3766.0,0.001]
[1753040563536,13.37657084,3766.1,3766.0,0.001]
[1753040563736,13.81447084,3766.1,3766.0,0.001]
[1753040564132,13.81447084,3766.1,3766.0,1e-08]
[1753040565045,5.01656149,3766.1,3766.0,1e-08]
[1753040565244,7.29826672,3766.1,3766.0,1e-08]
[1753040565459,2.65526672,3766.1,3766.0,1e-08]
[1753040565767,2.65512572,3766.3,3766.1,0.7881]
[1753040565768,2.78719352,3766.3,3766.1,0.7881]
[1753040566061,0.132,3766.8,3766.2,0.4658]
[1753040566260,2.65491424,3766.6,3766.2,0.4658]
[1753040566468,4.093,3766.5,3766.3,0.4658]
[1753040566790,4.093,3766.5,3766.4,0.4658]
[1753040566961,6.74798473,3766.5,3766.4,0.4658]
[1753040569730,6.74798473,3766.5,3766.1,0.7881]
[1753040569731,6.74798473,3766.5,3766.1,1.2539]
[1753040570038,4.093,3766.5,3766.2,0.4658]
[1753040570241,4.093,3766.5,3766.1,0.7881]
[1753040570242,4.093,3766.5,3766.3,0.4658]
[1753040570428,4.093,3766.5,3766.4,0.4658]
[1753040571430,0.002,3767.0,3766.5,0.7657]
[1753040571632,2.65477988,3766.8,3766.6,0.4658]
[1753040571850,4.092,3766.7,3766.6,0.4658]
[1753040572056,4.092,3766.7,3766.5,0.7657]
[1753040572256,4.092,3766.7,3766.5,1.1209873]
[1753040572665,4.092,3766.7,3766.6,0.4658]
[1753040572867,0.684,3767.0,3766.6,0.4658]
[1753040572868,3.33865159,3767.0,3766.6,0.4658]
[1753040573030,4.092,3766.9,3766.6,0.4658]
[1753040573235,6.74671823,3766.9,3766.6,0.4658]
[1753040573736,4.092,3766.9,3766.6,0.4658]
[1753040574373,2.65482482,3766.8,3766.6,0.4658]
[1753040574539,4.091,3766.7,3766.5,0.7657]
[1753040575042,4.091,3766.7,3766.6,0.4658]
[1753040575969,6.74584376,3766.7,3766.6,0.4658]
[1753040576164,4.091,3766.7,3766.6,0.4658]
[1753040576855,6.74584376,3766.7,3766.6,0.4658]
[1753040577370,2.65491424,3766.6,3766.5,0.7657]
[1753040577575,2.65498473,3766.5,3766.4,0.132]
[1753040577740,6.74598473,3766.5,3766.4,0.132]
[1753040578368,2.65505522,3766.4,3766.3,1.226]
[1753040578969,6.74605522,3766.4,3766.3,1.226]
[1753040579364,4.091,3766.4,3766.3,1.226]
[1753040580284,4.09,3766.4,3766.3,1.226]
[1753040584046,6.74505522,3766.4,3766.3,1.226]
[1753040584377,4.09,3766.4,3766.3,1.226]
[1753040584886,6.74505522,3766.4,3766.3,1.226]
[1753040585281,6.74505522,3766.4,3766.0,1e-08]
[1753040585282,2.65512572,3766.3,3766.0,0.79250001]
[1753040585490,2.65526672,3766.1,3766.0,0.79250001]
[1753040585690,3.59530596,3766.1,3766.0,1e-08]
[1753040586187,4.03890596,3766.1,3766.0,1e-08]
[1753040586555,4.58890596,3766.1,3766.0,1e-08]
[1753040593059,5.34390596,3766.1,3766.0,1e-08]
[1753040596959,8.34390596,3766.1,3766.0,1e-08]
[1753040598680,8.34390596,3766.1,3765.3,0.001]
[1753040598681,4.00616034,3765.4,3765.3,0.001]
[1753040598883,8.76134398,3765.4,3765.3,0.001]
[1753040599272,9.20494398,3765.4,3765.3,0.001]
[1753040602322,0.55,3765.0,3764.8,0.001]
[1753040602500,7.29411304,3764.9,3764.8,0.001]
[1753040602666,7.96730654,3764.9,3764.8,0.001]
[1753040605810,8.78970654,3764.9,3764.8,0.001]
[1753040606113,7.96730654,3764.9,3764.8,0.001]
[1753040606926,7.96730654,3764.9,3764.4,0.001]
[1753040607074,3.20639527,3764.5,3764.4,0.001]
[1753040607274,8.1906444,3764.5,3764.4,0.001]
[1753040607688,8.6342444,3764.5,3764.4,0.001]
[1753040608071,4.5462444,3764.5,3764.4,0.001]
[1753040608277,8.6342444,3764.5,3764.4,0.001]
[1753040609385,8.1906444,3764.5,3764.4,0.001]
[1753040610312,2.65639527,3764.5,3764.4,0.001]
[1753040610515,6.74439527,3764.5,3764.4,0.4365]
[1753040611900,6.74439527,3764.5,3764.4,0.001]
[1753040613508,6.74439527,3764.5,3764.4,0.4365]
[1753040613898,6.74439527,3764.5,3764.4,0.001]
[1753040614918,6.74439527,3764.5,3764.4,0.4365]
[1753040616009,0.8325,3765.6,3764.5,0.8324]
[1753040616187,0.1328,3765.0,3764.6,0.9893893]
[1753040616388,4.088,3764.9,3764.7,0.4355]
[1753040617119,4.088,3764.9,3764.8,0.4355]
[1753040617890,6.74411304,3764.9,3764.8,0.4355]
[1753040618112,4.088,3764.9,3764.8,0.4355]
[1753040618506,4.087,3764.9,3764.8,0.4355]
[1753040620115,0.1328,3765.0,3764.9,0.7885]
[1753040620297,4.2198,3765.0,3764.9,0.7885]
[1753040620617,4.2198,3765.0,3764.9,1.224]
[1753040621792,6.87584249,3765.0,3764.6,0.4355]
[1753040621997,4.2198,3765.0,3764.6,3.4355]
[1753040622213,4.2198,3765.0,3764.6,3.0]
[1753040622406,4.2198,3765.0,3764.7,0.4355]
[1753040622606,4.2198,3765.0,3764.8,0.4355]
[1753040622812,2.65570107,3765.5,3764.9,3.09161304]
[1753040623126,0.132,3765.3,3765.0,1.2557]
[1753040623327,4.086,3765.2,3765.0,1.2557]
[1753040623514,2.6555391,3765.8,3765.1,3.09146722]
[1753040623837,6.87356031,3765.7,3765.2,0.4355]
[1753040624231,4.218,3765.7,3765.3,0.4355]
[1753040624438,0.132,3766.0,3765.5,2.65563996]
[1753040624596,2.65547825,3765.8,3765.5,0.4355]
[1753040624910,2.65590141,3765.2,3764.5,0.8202]
[1753040625106,2.65590141,3765.2,3764.8,0.1328]
[1753040625308,4.086,3765.3,3764.9,0.4355]
[1753040625634,6.741836,3765.3,3765.0,0.4355]
[1753040625832,6.741836,3765.3,3764.8,3.1328]
[1753040626019,6.741836,3765.3,3765.1,0.4355]
[1753040626330,2.65590141,3765.2,3765.1,0.4355]
[1753040626515,6.74184345,3765.3,3764.8,0.5683]
[1753040626847,4.086,3765.2,3764.8,0.5683]
[1753040627017,2.65609439,3765.0,3764.8,0.1328]
[1753040627194,2.65604249,3765.0,3764.8,0.1328]
[1753040627635,4.086,3764.9,3764.8,0.1328]
[1753040628918,4.086,3764.9,3764.8,0.5683]
[1753040629128,6.74211304,3764.9,3764.8,0.5683]
[1753040629692,4.086,3764.9,3764.8,0.5683]
[1753040629937,6.74211304,3764.9,3764.8,0.5683]
[1753040630231,6.74211304,3764.9,3764.8,0.1328]
[1753040630644,2.6563247,3764.6,3764.5,0.8202]
[1753040631123,2.65639527,3764.5,3764.4,0.001]
[1753040631446,6.74139527,3764.5,3764.4,0.001]
[1753040633413,7.17079527,3764.5,3764.4,0.001]
[1753040634011,2.65615979,3764.9,3764.4,0.001]
[1753040634012,4.15558991,3765.8,3764.5,0.8198]
[1753040634246,2.6558458,3765.3,3764.7,0.8198]
[1753040634446,4.085,3765.2,3764.7,0.84636254]
[1753040634647,4.085,3765.2,3764.8,3.0916722]
[1753040634950,4.085,3765.2,3764.9,0.4355]
[1753040635332,4.085,3765.2,3765.0,0.4355]
[1753040635513,0.002,3766.1,3765.1,0.4355]
[1753040635715,2.65573749,3765.5,3765.1,0.4355]
[1753040636354,4.085,3765.4,3765.1,0.4355]
[1753040637857,2.65577281,3765.4,3765.1,0.4355]
[1753040638044,4.084,3765.3,3765.1,0.4355]
[1753040638449,2.65576951,3765.4,3765.1,0.4355]
[1753040638655,4.084,3765.3,3765.1,0.4355]
[1753040639038,4.084,3765.2,3765.1,0.4355]
[1753040641437,4.084,3765.2,3764.8,0.8121]
[1753040641759,2.65611304,3764.9,3764.8,0.001]
[1753040641924,6.74011304,3764.9,3764.8,0.001]
[1753040642131,7.18031304,3764.9,3764.8,0.001]
[1753040643050,7.73031304,3764.9,3764.8,0.001]
[1753040643255,9.6265154,3764.9,3764.8,0.001]
[1753040644739,5.1023154,3764.9,3764.8,0.001]
[1753040644939,2.65611304,3764.9,3764.8,0.4523]
[1753040645268,6.73911304,3764.9,3764.8,0.001]
[1753040645570,4.083,3764.9,3764.8,0.4523]
[1753040646484,2.65597459,3765.1,3764.8,0.4523]
[1753040646640,0.002,3765.3,3764.8,0.8543738]
[1753040646841,4.083,3765.2,3764.9,0.1328]
[1753040647083,4.083,3765.2,3765.0,0.4513]
[1753040649427,4.083,3765.2,3764.9,0.1328]
[1753040649544,4.083,3765.2,3765.1,0.4513]
[1753040650683,2.65590141,3765.2,3765.1,0.4513]
[1753040650848,2.65602315,3765.1,3764.9,0.1328]
[1753040651052,6.73892165,3765.2,3764.9,0.1328]
[1753040651464,4.5232,3765.2,3764.9,0.1328]
[1753040651666,7.17910722,3765.2,3764.9,0.1328]
[1753040651955,6.73890722,3765.2,3764.9,0.1328]
[1753040652156,4.083,3765.2,3764.9,0.48974168]
[1753040652361,4.083,3765.2,3765.0,0.4513]
[1753040653054,6.73892143,3765.2,3764.9,0.1328]
[1753040653260,2.65597829,3765.1,3764.9,0.1328]
[1753040653673,4.083,3765.0,3764.9,0.1328]
[1753040655373,8.11893095,3765.0,3764.8,0.001]
[1753040655580,2.65611304,3764.9,3764.8,0.001]
[1753040656605,3.09631304,3764.9,3764.8,0.001]
[1753040656979,4.47661304,3764.9,3764.8,1e-08]
[1753040657159,5.81634096,3764.9,3764.8,1e-08]
[1753040660379,4.82614096,3764.9,3764.8,1e-08]
[1753040660916,3.99584096,3764.9,3764.8,1e-08]
[1753040662585,8.07784096,3764.9,3764.8,1e-08]
[1753040663222,8.51804096,3764.9,3764.8,1e-08]
[1753040664272,9.86494096,3764.9,3764.8,1e-08]
[1753040667402,12.86494096,3764.9,3764.8,1e-08]
[1753040667706,17.13493399,3764.9,3764.8,1e-08]
[1753040669975,24.90493399,3764.9,3764.8,1e-08]
[1753040670170,3.97659527,3764.5,3764.4,1e-08]
[1753040670370,11.99828373,3764.5,3764.4,1e-08]
[1753040670605,12.43998373,3764.5,3764.4,1e-08]
[1753040671611,16.70997676,3764.5,3764.4,1e-08]
[1753040673404,2.65660698,3764.2,3764.1,1e-08]
[1753040673606,10.50780698,3764.2,3764.1,1e-08]
[1753040673792,3.33947755,3764.1,3764.0,1e-08]
[1753040673992,3.78117755,3764.1,3764.0,1e-08]
[1753040675411,18.82117058,3764.1,3764.0,1e-08]
[1753040675609,19.59447058,3764.1,3764.0,1e-08]
[1753040676076,15.32447755,3764.1,3764.0,1e-08]
[1753040676278,16.26416601,3764.1,3764.0,1e-08]
[1753040680211,17.85616601,3764.1,3764.0,1e-08]
[1753040680378,19.05616601,3764.1,3764.0,1e-08]
[1753040681676,3.20773667,3762.6,3762.2,0.7644]
[1753040681877,2.97864075,3762.5,3761.1,2.67878264]
[1753040682081,4.082,3762.4,3762.3,0.7644]
[1753040682299,4.082,3762.4,3762.3,1.1941]
[1753040685112,6.73987795,3762.4,3762.3,1.1941]
[1753040686224,6.73987795,3762.4,3762.3,0.7644]
[1753040686783,6.73987795,3762.4,3762.3,1.1941]
[1753040687051,2.65801924,3762.2,3761.7,0.7892]
[1753040687231,6.73901924,3762.2,3761.7,0.7892]
[1753040687988,7.18071924,3762.2,3761.6,0.4297]
[1753040688486,7.73071924,3762.2,3761.5,0.001]
[1753040688928,7.73071924,3762.2,3762.1,1e-08]
[1753040689100,8.13068558,3762.2,3762.1,1e-08]
[1753040690213,11.13068558,3762.2,3762.1,1e-08]
[1753040690820,11.13168558,3762.2,3762.1,1e-08]
[1753040691518,11.94468558,3762.2,3762.1,1e-08]
[1753040694226,7.86268558,3762.2,3762.1,1e-08]
[1753040694440,11.94468558,3762.2,3762.1,1e-08]
[1753040695118,7.86268558,3762.2,3762.1,1e-08]
[1753040695360,6.87098558,3762.2,3762.1,1e-08]
[1753040695524,10.95298558,3762.2,3762.1,1e-08]
[1753040695728,11.50298558,3762.2,3762.1,1e-08]
[1753040696016,7.13998558,3762.2,3762.1,1e-08]
[1753040696752,3.05798558,3762.2,3762.1,1e-08]
[1753040696929,7.68998558,3762.2,3762.1,1e-08]
[1753040698214,8.12418558,3762.2,3762.1,1e-08]
[1753040698830,7.68998558,3762.2,3762.1,1e-08]
[1753040699734,3.20801924,3762.2,3762.1,1e-08]
[1753040699935,7.29001924,3762.2,3762.1,1e-08]
[1753040700332,3.20801924,3762.2,3762.1,1e-08]
[1753040700532,7.29001924,3762.2,3762.1,0.44840001]
[1753040701286,7.77,3762.5,3762.1,1e-08]
[1753040701438,2.65801924,3762.2,3762.1,0.44840001]
[1753040701766,6.74001924,3762.2,3762.1,1e-08]
[1753040702379,7.77,3762.5,3762.1,0.44840001]
[1753040702542,6.87268394,3762.4,3762.1,0.44840001]
[1753040702874,4.082,3762.3,3762.2,0.8038]
[1753040703041,6.73994859,3762.3,3762.2,0.8038]
[1753040703241,2.7906967,3762.4,3762.2,0.8038]
[1753040703436,6.73994859,3762.3,3762.2,0.8038]
[1753040703665,6.73994859,3762.3,3762.1,1e-08]
[1753040703666,3.20801924,3762.2,3762.1,1e-08]
[1753040703849,3.64221924,3762.2,3762.1,1e-08]
[1753040705943,3.20801924,3762.2,3762.1,1e-08]
[1753040706190,6.74001924,3762.2,3762.1,0.44840001]
[1753040706342,6.74001924,3762.2,3762.1,1.25220001]
[1753040707046,2.65780631,3762.6,3762.1,1.25220001]
[1753040707253,0.1328,3762.4,3762.2,0.4484]
[1753040707480,4.081,3762.3,3762.2,0.4484]
[1753040707656,4.081,3762.3,3762.2,0.5869]
[1753040708253,2.65753364,3762.9,3762.4,0.7507]
[1753040708452,4.2138,3762.8,3762.5,0.4484]
[1753040708653,6.87141845,3762.8,3762.5,0.4484]
[1753040708856,6.87141845,3762.8,3762.4,0.7507]
[1753040709073,6.87141845,3762.8,3762.6,0.4484]
[1753040709272,6.87141845,3762.8,3762.7,0.4484]
[1753040709273,6.8713954,3762.8,3762.7,0.4484]
[1753040709670,2.65744236,3763.1,3762.7,0.4484]
[1753040709879,4.081,3763.0,3762.8,0.7507]
[1753040710109,4.081,3762.9,3762.8,0.7507]
[1753040710706,4.081,3762.9,3762.8,1.1991]
[1753040711504,0.1328,3763.3,3762.8,1.59806895]
[1753040711685,2.65698307,3763.7,3763.0,0.7507]
[1753040711686,0.1328,3763.6,3763.0,0.7507]
[1753040711868,4.081,3763.5,3763.1,0.4484]
[1753040712053,2.78987802,3763.6,3763.1,0.4484]
[1753040712254,0.84040503,3764.1,3763.2,0.7507]
[1753040712453,2.65696773,3763.7,3763.4,0.7772]
[1753040712787,4.081,3763.6,3763.5,0.4484]
[1753040713087,0.1348,3763.9,3763.6,0.4484]
[1753040713288,0.002,3763.9,3763.7,0.80376959]
[1753040713456,0.002,3763.9,3763.8,0.5812]
[1753040713787,0.002,3763.9,3763.8,1.89514459]
[1753040713959,0.002,3763.9,3763.8,1.3584]
[1753040714298,0.002,3763.9,3763.8,4.01528931]
[1753040714658,0.002,3763.9,3763.8,7.01528931]
[1753040716156,0.002,3763.9,3763.8,4.3584]
[1753040717892,0.002,3763.9,3763.8,7.01528931]
[1753040718210,0.002,3763.9,3763.8,7.98252103]
[1753040721389,0.002,3763.9,3763.8,5.32563172]
[1753040721582,0.002,3763.9,3763.8,7.98252103]
[1753040722365,0.002,3763.9,3763.8,14.32248519]
[1753040734014,0.002,3763.9,3763.8,12.05952103]
[1753040734766,0.002,3763.9,3763.8,8.95423172]
[1753040735080,0.002,3763.9,3763.3,4.5108]
[1753040735267,0.002,3763.9,3763.7,0.1328]
[1753040736357,0.002,3763.9,3763.8,0.4338]
[1753040737335,0.002,3763.9,3763.7,0.1328]
[1753040737543,0.002,3763.9,3763.7,0.5666]
[1753040737719,0.002,3763.9,3763.7,1.59932514]
[1753040737913,2.65884468,3763.9,3763.7,1.16552514]
[1753040738115,0.002,3763.9,3763.7,1.16552514]
[1753040738446,2.65882795,3763.9,3763.7,0.1328]
[1753040740138,0.002,3763.9,3763.7,0.1328]
[1753040744250,2.65688931,3763.8,3763.7,0.1328]
[1753040744456,0.002,3763.9,3763.7,0.1328]
[1753040744951,2.65887398,3763.9,3763.7,0.1328]
[1753040745753,2.65688931,3763.8,3763.7,0.1328]
[1753040746247,3.10904253,3763.9,3763.7,0.1328]
[1753040746473,0.4522,3763.9,3763.7,0.1328]
[1753040746771,0.002,3763.9,3763.7,0.1328]
[1753040747064,3.10708931,3763.8,3763.7,0.1328]
[1753040747216,2.65722117,3763.4,3763.1,0.1328]
[1753040747411,2.65722117,3763.4,3763.2,3.0]
[1753040747616,3.10742117,3763.4,3763.2,3.0]
[1753040748016,3.10742117,3763.4,3763.1,0.1328]
[1753040748217,0.4502,3763.4,3763.1,0.1328]
[1753040748449,2.6571199,3763.5,3763.1,0.1328]
[1753040748616,2.65717463,3763.4,3763.1,0.1328]
[1753040748960,2.65709434,3763.6,3763.1,0.1328]
[1753040749114,3.10717564,3763.7,3763.1,2.79018319]
[1753040749314,0.4502,3763.7,3763.1,0.1328]
[1753040749541,3.10720585,3763.7,3763.1,0.1328]
[1753040749747,2.65705528,3763.6,3763.1,0.1328]
[1753040750550,2.65710242,3763.5,3763.1,0.1328]
[1753040751249,2.65726236,3763.3,3763.1,0.1328]
[1753040751412,2.65719918,3763.4,3763.1,0.1328]
[1753040751612,0.4502,3763.3,3763.1,0.1328]
[1753040752221,3.10725473,3763.6,3763.1,0.1328]
[1753040752756,0.1328,3763.8,3763.1,2.79013925]
[1753040753060,2.65698411,3763.7,3763.1,3.22393925]
[1753040753952,0.1328,3763.8,3763.2,0.02657312]
[1753040754179,0.002,3763.9,3763.6,3.1328]
[1753040754465,0.002,3763.9,3763.7,0.4338]
[1753040755021,0.002,3763.9,3763.7,3.09074659]
[1753040759961,0.002,3763.9,3763.7,0.4338]
[1753040760266,0.002,3763.9,3763.8,2.65688931]
[1753040760750,0.002,3763.9,3763.7,3.09073107]
[1753040760933,0.002,3763.9,3763.8,3.09258931]
[1753040761368,0.002,3763.9,3763.8,0.4357]
[1753040761766,0.002,3763.9,3763.8,3.9723839]
[1753040761968,0.002,3763.9,3763.8,12.27125279]
[1753040762127,0.002,3763.9,3763.8,12.3774839]
[1753040763370,0.002,3764.5,3764.4,3.40806583]
[1753040763570,0.002,3764.5,3764.4,14.91584571]
[1753040763725,0.002,3764.5,3764.4,17.08222044]
[1753040765273,0.002,3764.5,3764.4,19.13847532]
[1753040767937,0.002,3764.5,3764.4,8.96503938]
[1753040768133,0.002,3764.5,3764.4,9.86426583]
[1753040768436,0.002,3764.5,3764.4,7.2078]
[1753040768638,0.002,3764.5,3764.4,9.86426583]
[1753040768946,0.002,3764.5,3764.4,10.29996583]
[1753040769548,0.002,3764.5,3764.4,11.11676583]
[1753040769757,0.002,3764.5,3764.4,13.12696434]
[1753040777179,0.002,3764.5,3764.4,13.79623625]
[1753040777382,0.002,3765.3,3764.7,3.20625415]
[1753040777688,0.002,3765.3,3765.2,12.74187152]
[1753040777880,0.002,3765.3,3765.2,16.81487152]
[1753040778085,0.002,3765.3,3765.2,19.19765708]
[1753040783194,0.002,3765.3,3765.2,19.3283811]
[1753040785395,0.02,3765.9,3765.4,2.65576034]
[1753040785594,0.02,3765.9,3765.4,9.72776034]
[1753040786613,0.02,3765.9,3765.4,9.93032643]
[1753040786932,0.02,3765.9,3765.4,12.13881478]
[1753040787379,0.02,3765.9,3765.4,12.70651478]
[1753040791069,0.7704,3765.8,3765.4,11.93624869]
[1753040791268,0.7704,3765.4,3765.0,4.071]
[1753040791520,1.2332,3765.4,3765.2,2.65590141]
[1753040791879,1.2332,3765.4,3765.3,3.0]
[1753040792081,1.2332,3765.4,3765.1,5.6825066]
[1753040792311,1.2332,3765.4,3765.3,3.0]
[1753040792703,1.2332,3765.4,3764.4,0.001]
[1753040792704,1.40187491,3765.4,3764.4,0.001]
[1753040792939,1.2146,3765.3,3764.4,0.001]
[1753040793109,0.4628,3765.2,3764.8,3.0]
[1753040793315,0.4628,3765.2,3764.8,7.084]
[1753040793511,0.4628,3765.1,3764.8,9.74017985]
[1753040793699,0.4628,3765.0,3764.8,4.084]
[1753040793905,0.7518,3765.3,3764.8,4.75802371]
[1753040794105,0.7518,3765.3,3764.8,7.41416076]
[1753040794320,0.4628,3765.2,3764.8,3.33016076]
[1753040794520,0.7518,3765.3,3764.9,4.084]
[1753040794747,0.4628,3765.1,3764.9,6.74011245]
[1753040795441,0.4628,3765.1,3765.0,2.65604249]
[1753040796145,0.4628,3765.1,3765.0,5.65604249]
[1753040797722,0.7518,3765.3,3765.1,3.0]
[1753040797929,0.4628,3765.2,3765.1,3.0]
[1753040798125,0.4628,3765.2,3765.1,9.73897195]
[1753040798920,0.4628,3765.2,3765.1,7.083]
[1753040799116,0.4628,3765.2,3765.1,9.73897195]
[1753040799440,0.002,3765.5,3765.4,2.65576034]
[1753040799742,0.002,3765.5,3765.4,6.73576034]
[1753040801150,0.002,3765.5,3765.4,6.86776034]
[1753040801329,0.002,3765.5,3765.4,9.86776034]
[1753040801724,0.002,3765.5,3765.4,10.33776034]
[1753040801964,0.002,3765.5,3765.4,12.06400703]
[1753040802651,0.002,3765.5,3765.4,11.59400703]
[1753040803461,0.4648,3765.5,3765.4,9.86776034]
[1753040807431,0.002,3765.5,3765.4,9.86776034]
[1753040808231,0.002,3765.5,3765.4,10.33776034]
[1753040808885,0.002,3765.5,3765.4,17.49205683]
[1753040809898,0.002,3765.5,3765.4,12.94205683]
[1753040810052,0.002,3765.5,3765.4,18.57984686]
[1753040810764,0.002,3765.5,3765.4,9.86576034]
[1753040810965,0.4648,3765.5,3765.4,9.86576034]
[1753040811548,0.4648,3765.5,3765.4,3.132]
[1753040811875,1.2568,3765.5,3765.4,7.209]
[1753040813098,1.2568,3765.5,3765.4,4.209]
[1753040813968,3.91248981,3765.5,3765.4,4.209]
[1753040814177,3.91248981,3765.5,3765.4,4.077]
[1753040814888,3.91248981,3765.5,3765.4,4.076]
[1753040815293,3.91251151,3765.5,3765.4,4.076]
[1753040815489,1.2568,3765.5,3765.4,4.076]
[1753040815694,3.91248981,3765.5,3765.4,4.076]
[1753040817928,1.2568,3765.5,3765.4,4.076]
[1753040820925,1.91359089,3765.5,3765.3,0.001]
[1753040821220,3.12566034,3765.4,3765.3,0.001]
[1753040821432,4.01526034,3765.4,3765.3,0.001]
[1753040822827,8.08826034,3765.4,3765.3,0.001]
[1753040828936,8.63826034,3765.4,3765.3,0.001]
[1753040831718,5.9825,3765.4,3765.3,0.001]
[1753040831924,5.4325,3765.4,3765.3,0.001]
[1753040832448,0.132,3765.4,3765.3,0.001]
[1753040832768,0.002,3765.5,3765.4,2.65576034]
[1753040832976,0.002,3765.5,3765.4,3.75261098]
[1753040833173,0.002,3765.5,3765.4,4.32611098]
[1753040833375,0.002,3765.5,3765.4,4.35266858]
[1753040833545,0.002,3765.5,3765.4,4.32611098]
[1753040834538,0.002,3765.5,3765.4,11.42566858]
[1753040834742,0.002,3765.5,3765.4,11.39911098]
[1753040835275,0.002,3765.5,3765.4,12.21051098]
[1753040835488,1e-08,3765.5,3765.4,12.21051098]
[1753040839458,1e-08,3765.5,3765.4,12.76051098]